[Event "11th LCC FIDE Open 2019"]
[Site "London"]
[Date "2019.11.30"]
[Round "2.11"]
[White "Villiers, Thomas"]
[Black "Flear, Glenn C"]
[Result "0-1"]
[ECO "C50"]
[WhiteElo "2145"]
[BlackElo "2463"]
[Annotator "ChessBase"]
[PlyCount "80"]
[EventDate "2019.11.29"]
[EventType "swiss"]
[EventCountry "ENG"]
[SourceTitle "playchess.com"]
[Source "ChessBase"]
[SourceQuality "1"]
[TimeControl "40/5400+30:1800+30"]

1. e4 {[%emt 0:41:50]} e5 {[%emt 0:00:00]} 2. Nf3 {[%emt 0:00:20]} Nc6 {[%emt 0:00:20]} 3. Bc4 {[%emt 0:00:10]} Bc5 {[%emt 0:00:41]} 4. Nc3 {[%emt 0:01:29]} Nf6 {[%emt 0:02:23]} 5. d3 {[%emt 0:00:10]} d6 {[%emt 0:01:45]} 6. Be3 {[%emt 0:01:31]} Bxe3 {[%emt 0:02:13]} 7. fxe3 {[%emt 0:08:01]} O-O {[%emt 0:00:10]} 8. a3 {[%emt 0:01:44]} Ne7 {[%emt 0:02:25]} 9. O-O {[%emt 0:00:14]} Ng6 {[%emt 0:00:19]} 10. Qe1 {[%emt 0:03:17]} c6 {[%emt 0:00:48]} 11. Ba2 {[%emt 0:00:02]} d5 {[%emt 0:03:09]} 12. exd5 {[%emt 0:00:46]} cxd5 {[%emt 0:00:56]} 13. e4 {[%emt 0:00:45]} Qb6+ {[%emt 0:13:51]} 14. Kh1 {[%emt 0:07:31]} d4 {[%emt 0:13:58]} 15. Nd5 {[%emt 0:00:37]} Nxd5 {[%emt 0:03:25]} 16. Bxd5 {[%emt 0:00:12]} Be6 {[%emt 0:01:23]} 17. Bxe6 {[%emt 0:03:33]} Qxe6 {[%emt 0:01:02]} 18. Qg3 {[%emt 0:01:00]} Rac8 {[%emt 0:02:34]} 19. Rf2 {[%emt 0:08:13]} f6 {[%emt 0:02:01]} 20. h4 {[%emt 0:00:26]} Qb6 {[%emt 0:03:11]} 21. b3 {[%emt 0:01:38]} Nf4 {[%emt 0:02:44]} 22. h5 {[%emt 0:01:33]} Nxh5 {[%emt 0:02:34]} 23. Qg4 {[%emt 0:00:07]} g6 {[%emt 0:04:35]} 24. Nh4 {[%emt 0:01:37]} Ng7 {[%emt 0:00:40]} 25. Raf1 {[%emt 0:00:15]} Qe6 {[%emt 0:01:57]} 26. Qxe6+ {[%emt 0:04:08]} Nxe6 {[%emt 0:00:07]} 27. Rxf6 {[%emt 0:00:05]} Rxc2 {[%emt 0:02:38]} 28. Kg1 {[%emt 0:00:01]} Rxf6 {[%emt 0:01:33]} 29. Rxf6 {[%emt 0:00:04]} Rc6 {[%emt 0:02:47]} 30. Rf1 {[%emt 0:00:01]} Nf4 {[%emt 0:01:28]} 31. Nf3 {[%emt 0:00:15]} Nxd3 {[%emt 0:01:03]} 32. Nd2 {[%emt 0:00:18]} Rc2 {[%emt 0:03:14]} 33. Nc4 {[%emt 0:00:16]} b5 {[%emt 0:02:07]} 34. Nd6 {[%emt 0:00:05]} Nf4 {[%emt 0:02:29]} 35. Nxb5 {[%emt 0:00:15]} d3 {[%emt 0:01:52]} 36. g3 {[%emt 0:00:20]} Nh3+ {[%emt 0:00:37]} 37. Kh1 {[%emt 0:00:05]} d2 {[%emt 0:00:20]} 38. Nxa7 {[%emt 0:00:31]} Rc1 {[%emt 0:00:34]} 39. Kg2 {[%emt 0:00:30]} Rxf1 {[%emt 0:00:30]} 40. Kxf1 {[%emt 0:00:30]} d1=Q+ {[%emt 0:00:30]} 0-1

[Event "11th LCC FIDE Open 2019"]
[Site "London"]
[Date "2019.11.30"]
[Round "2.12"]
[White "Arkell, Keith C"]
[Black "Johnson, Daniel"]
[Result "1-0"]
[ECO "E18"]
[WhiteElo "2445"]
[BlackElo "2186"]
[Annotator "NA"]
[PlyCount "73"]
[EventDate "2019.11.29"]
[EventType "swiss"]
[EventCountry "ENG"]
[SourceTitle "playchess.com"]
[Source "ChessBase"]
[SourceQuality "1"]
[TimeControl "40/5400+30:1800+30"]

1. d4 {[%emt 0:18:42]} Nf6 {[%emt 0:01:17]} 2. Nf3 {[%emt 0:00:07]} e6 {[%emt 0:00:07]} 3. c4 {[%emt 0:00:05]} b6 {[%emt 0:01:04]} 4. g3 {[%emt 0:00:07]} Bb7 {[%emt 0:00:04]} 5. Bg2 {[%emt 0:00:04]} Be7 {[%emt 0:00:30]} 6. Nc3 {[%emt 0:00:06]} O-O {[%emt 0:00:22]} 7. O-O {[%emt 0:00:11]} Ne4 {[%emt 0:01:22]} 8. Nxe4 {[%emt 0:00:40]} Bxe4 {[%emt 0:00:07]} 9. Nh4 {[%emt 0:00:03]} Bxg2 {[%emt 0:05:03]} 10. Nxg2 {[%emt 0:00:05]} d5 {[%emt 0:00:28]} 11. Qa4 {[%emt 0:00:08]} Qd7 {[%emt 0:08:19]} 12. Qxd7 {[%emt 0:00:07]} Nxd7 {[%emt 0:00:04]} 13. cxd5 {[%emt 0:00:10]} exd5 {[%emt 0:00:05]} 14. Nf4 {[%emt 0:00:15]} Nf6 {[%emt 0:03:24]} 15. Rd1 {[%emt 0:00:39]} Rfd8 {[%emt 0:04:32]} 16. Bd2 {[%emt 0:01:45]} c5 {[%emt 0:10:54]} 17. dxc5 {[%emt 0:00:06]} bxc5 {[%emt 0:00:48]} 18. Ba5 {[%emt 0:00:21]} Rd7 {[%emt 0:01:54]} 19. Rac1 {[%emt 0:00:55]} d4 {[%emt 0:25:46]} 20. Nd3 {[%emt 0:00:26]} Rd5 {[%emt 0:03:44]} 21. b4 {[%emt 0:02:54]} Ne4 {[%emt 0:14:09]} 22. bxc5 {[%emt 0:12:20]} Nxc5 {[%emt 0:03:30]} 23. Nf4 {[%emt 0:02:27]} Rf5 {[%emt 0:10:25]} 24. Rxd4 {[%emt 0:02:25]} Ne6 {[%emt 0:00:48]} 25. Ra4 {[%emt 0:04:57]} Nxf4 {[%emt 0:01:42]} 26. gxf4 {[%emt 0:00:05]} Re8 {[%emt 0:00:53]} 27. Bd2 {[%emt 0:02:36]} g5 {[%emt 0:01:36]} 28. e4 {[%emt 0:03:08]} Rb5 {[%emt 0:00:31]} 29. Rxa7 {[%emt 0:14:49]} Bc5 {[%emt 0:00:29]} 30. Rc7 {[%emt 0:00:15]} Bf8 {[%emt 0:00:31]} 31. fxg5 {[%emt 0:02:43]} Rxe4 {[%emt 0:00:27]} 32. Rc8 {[%emt 0:00:23]} Re2 {[%emt 0:00:33]} 33. Be3 {[%emt 0:00:51]} Re5 {[%emt 0:00:30]} 34. Ra8 {[%emt 0:03:29]} Re6 {[%emt 0:00:30]} 35. Rcc8 {[%emt 0:00:27]} Kg7 {[%emt 0:00:31]} 36. Rxf8 {[%emt 0:00:07]} Rxa2 {[%emt 0:00:29]} 37. Rg8# {[%emt 0:00:06]} 1-0

[Event "11th LCC FIDE Open 2019"]
[Site "London"]
[Date "2019.11.30"]
[Round "2.14"]
[White "Kirk, Ezra G"]
[Black "Ratnesan, Ranesh"]
[Result "1/2-1/2"]
[ECO "B51"]
[WhiteElo "2433"]
[BlackElo "2180"]
[Annotator "NA"]
[PlyCount "139"]
[EventDate "2019.11.29"]
[EventType "swiss"]
[EventCountry "ENG"]
[SourceTitle "playchess.com"]
[Source "ChessBase"]
[SourceQuality "1"]
[TimeControl "40/5400+30:1800+30"]

1. e4 {[%emt 0:01:22]} c5 {[%emt 0:00:00]} 2. Nf3 {[%emt 0:00:08]} d6 {[%emt 0:00:30]} 3. Bb5+ {[%emt 0:00:07]} Nc6 {[%emt 0:00:27]} 4. O-O {[%emt 0:00:26]} Bd7 {[%emt 0:00:39]} 5. Re1 {[%emt 0:00:17]} Nf6 {[%emt 0:02:33]} 6. c3 {[%emt 0:00:14]} a6 {[%emt 0:05:27]} 7. Bf1 {[%emt 0:00:25]} e5 {[%emt 0:04:19]} 8. h3 {[%emt 0:02:12]} g5 {[%emt 0:05:20]} 9. d4 {[%emt 0:07:24]} g4 {[%emt 0:06:44]} 10. hxg4 {[%emt 0:04:47]} Bxg4 {[%emt 0:02:16]} 11. dxe5 {[%emt 0:00:53]} (11. d5 $16 Ne7 12. a4) 11... dxe5 {[%emt 0:02:53]} 12. Qxd8+ {[%emt 0:22:24]} Rxd8 {[%emt 0:00:28]} 13. Bg5 {[%emt 0:10:04]} Be7 {[%emt 0:01:59]} 14. Nbd2 {[%emt 0:01:45]} Rg8 {[%emt 0:09:53]} 15. Bxf6 {[%emt 0:00:08]} Bxf6 {[%emt 0:00:06]} 16. Be2 $11 {[%emt 0:01:03]} Kd7 {[%emt 0:29:17]} 17. Nc4 {[%emt 0:03:42]} Kc7 {[%emt 0:01:16]} 18. Ne3 {[%emt 0:01:46]} Be6 {[%emt 0:00:36]} 19. Bc4 {[%emt 0:01:36]} b5 {[%emt 0:05:37]} 20. Nd5+ {[%emt 0:07:25]} Bxd5 {[%emt 0:00:14]} 21. Bxd5 {[%emt 0:00:05]} Rd7 {[%emt 0:01:35]} 22. a4 {[%emt 0:00:42]} Rb8 {[%emt 0:04:26]} 23. axb5 {[%emt 0:01:03]} axb5 {[%emt 0:00:37]} 24. Ra6 {[%emt 0:04:33]} Rb6 {[%emt 0:00:34]} 25. Rea1 {[%emt 0:00:09]} Nd8 {[%emt 0:03:19]} 26. Ra7+ {[%emt 0:06:03]} Kd6 {[%emt 0:02:32]} 27. Nh2 {[%emt 0:00:12]} Bg5 {[%emt 0:01:27]} 28. Rxd7+ {[%emt 0:10:30]} Kxd7 {[%emt 0:00:05]} 29. Ra7+ {[%emt 0:00:04]} Ke8 {[%emt 0:01:22]} 30. Ng4 {[%emt 0:01:30]} Bf4 {[%emt 0:01:03]} 31. g3 {[%emt 0:03:33]} Rg6 {[%emt 0:01:15]} 32. Nh2 {[%emt 0:00:05]} Bc1 {[%emt 0:02:27]} 33. b4 {[%emt 0:01:17]} cxb4 {[%emt 0:00:28]} 34. cxb4 {[%emt 0:00:55]} Rxg3+ {[%emt 0:00:26]} 35. Kf1 {[%emt 0:00:03]} Rg6 {[%emt 0:00:49]} 36. Nf3 {[%emt 0:00:13]} Bf4 {[%emt 0:02:33]} 37. Nh4 {[%emt 0:00:35]} Rb6 {[%emt 0:01:03]} 38. Nf5 {[%emt 0:00:16]} Bg5 {[%emt 0:00:11]} 39. Kg2 {[%emt 0:03:31]} Rg6 {[%emt 0:01:56]} 40. Kh3 {[%emt 0:02:03]} h6 {[%emt 0:00:36]} 41. Ra8 {[%emt 0:08:15]} Be7 {[%emt 0:10:07]} 42. Nxe7 {[%emt 0:03:05]} Kxe7 {[%emt 0:00:03]} 43. Rb8 {[%emt 0:00:07]} Ne6 {[%emt 0:01:14]} 44. Bxe6 {[%emt 0:00:46]} Kxe6 {[%emt 0:02:43]} 45. Rb6+ {[%emt 0:03:23]} Ke7 {[%emt 0:01:27]} 46. Rxb5 {[%emt 0:00:06]} f6 {[%emt 0:00:39]} 47. Rb7+ {[%emt 0:01:26]} Ke6 {[%emt 0:00:39]} 48. Rb6+ {[%emt 0:04:06]} Ke7 {[%emt 0:00:10]} 49. Rc6 {[%emt 0:00:36]} Rg1 {[%emt 0:03:09]} 50. b5 {[%emt 0:00:48]} Rb1 {[%emt 0:00:34]} 51. b6 {[%emt 0:00:21]} Rb4 {[%emt 0:00:43]} 52. f3 {[%emt 0:00:25]} Rb3 {[%emt 0:00:28]} 53. Kg2 {[%emt 0:04:43]} h5 {[%emt 0:01:19]} 54. Rc7+ {[%emt 0:00:07]} Kd6 {[%emt 0:00:57]} 55. Rf7 {[%emt 0:02:28]} Ke6 {[%emt 0:00:31]} 56. Rb7 {[%emt 0:00:04]} f5 {[%emt 0:05:09]} 57. Rh7 {[%emt 0:01:41]} fxe4 {[%emt 0:00:09]} 58. fxe4 {[%emt 0:00:04]} Kd6 {[%emt 0:00:18]} 59. b7 {[%emt 0:01:18]} Kc6 {[%emt 0:00:23]} 60. Rxh5 {[%emt 0:00:15]} Kxb7 {[%emt 0:00:33]} 61. Rxe5 {[%emt 0:00:07]} Kc6 {[%emt 0:00:04]} 62. Rd5 {[%emt 0:01:28]} Re3 {[%emt 0:01:33]} 63. Rd4 {[%emt 0:00:30]} Kc5 {[%emt 0:00:16]} 64. Ra4 {[%emt 0:00:10]} Kd6 {[%emt 0:00:12]} 65. Kf2 {[%emt 0:00:10]} Rb3 {[%emt 0:00:13]} 66. Ra5 {[%emt 0:00:19]} Ke6 {[%emt 0:00:22]} 67. Ke2 {[%emt 0:00:09]} Rh3 {[%emt 0:00:27]} 68. Rd5 {[%emt 0:01:07]} Ra3 {[%emt 0:00:31]} 69. Rd3 {[%emt 0:00:06]} Rxd3 {[%emt 0:00:21]} 70. Kxd3 {[%emt 0:00:04]} 1/2-1/2

[Event "11th LCC FIDE Open 2019"]
[Site "London"]
[Date "2019.11.30"]
[Round "2.15"]
[White "Cherniaev, Alexander"]
[Black "Osborne, Marcus E"]
[Result "1-0"]
[ECO "D11"]
[WhiteElo "2428"]
[BlackElo "2166"]
[Annotator "NA"]
[PlyCount "63"]
[EventDate "2019.11.29"]
[EventType "swiss"]
[EventCountry "ENG"]
[SourceTitle "playchess.com"]
[Source "ChessBase"]
[SourceQuality "1"]
[TimeControl "40/5400+30:1800+30"]

1. d4 {[%emt 0:00:00]} d5 {[%emt 0:00:00]} 2. Nf3 {[%emt 0:00:00]} c6 {[%emt 0:00:00]} 3. c4 {[%emt 0:00:02]} Nf6 {[%emt 0:00:00]} 4. g3 {[%emt 0:00:31]} Bg4 {[%emt 0:00:53]} 5. Bg2 {[%emt 0:05:23]} e6 {[%emt 0:00:09]} 6. O-O {[%emt 0:00:18]} Nbd7 {[%emt 0:00:15]} 7. Qb3 {[%emt 0:03:25]} Qb6 {[%emt 0:05:23]} 8. Nc3 {[%emt 0:03:20]} Be7 {[%emt 0:03:15]} 9. Bf4 {[%emt 0:00:00]} O-O {[%emt 0:01:20] D11: Slav Defence: 3 Nf3 sidelines and 3...Nf6 4 e3 Bg4} 10. Rfe1 {[%emt 0:00:00]} (10. c5 $11 Qxb3 11. axb3) (10. Rfd1 Bf5 11. c5 Qxb3 12. axb3 Bc2 13. Rdc1 Bxb3 14. Nd2 Bc4 15. Nxc4 dxc4 16. Na4 Nd5 17. Rxc4 {½-½ (129) Kamsky,G (2725)-Kramnik,V (2759) Nice 2009}) 10... Rfd8 $146 {[%emt 0:12:21]} ({Predecessor:} 10... dxc4 11. Qxc4 Nd5 12. Bc1 Nb4 13. Rd1 Rad8 14. Bd2 Nd5 15. e4 Nxc3 16. Bxc3 Qc7 17. a4 {½-½ (32) Cvitan,O (2531)-Jovanic,O (2523) Sibenik 2010}) 11. c5 {[%emt 0:11:16]} Qxb3 {[%emt 0:09:20]} 12. axb3 {[%emt 0:00:18]} Ne4 {[%emt 0:00:27]} 13. b4 {[%emt 0:06:53]} Bf5 {[%emt 0:09:01]} 14. Nh4 {[%emt 0:09:37]} Bxh4 {[%emt 0:01:04]} 15. gxh4 {[%emt 0:00:03]} Ndf6 {[%emt 0:00:34]} 16. f3 {[%emt 0:00:27]} Nxc3 {[%emt 0:00:00]} 17. bxc3 {[%emt 0:00:25]} Bc2 {[%emt 0:02:59]} 18. Ra3 {[%emt 0:00:15]} h6 {[%emt 0:06:44]} 19. Kf2 {[%emt 0:00:25]} Re8 {[%emt 0:01:36]} 20. Bd6 {[%emt 0:00:46]} a6 {[%emt 0:01:00]} 21. Ke3 {[%emt 0:00:14]} Nd7 $14 {[%emt 0:07:24]} 22. Kd2 {[%emt 0:01:22]} Bg6 {[%emt 0:03:24]} 23. Rg1 {[%emt 0:04:47]} Kh7 {[%emt 0:01:47]} 24. e4 {[%emt 0:16:46]} f5 {[%emt 0:00:52]} 25. exd5 {[%emt 0:00:07]} exd5 {[%emt 0:07:25]} 26. Bh3 {[%emt 0:00:55]} Nf6 {[%emt 0:00:56]} 27. Raa1 {[%emt 0:01:16]} Re6 {[%emt 0:04:08]} 28. Rg2 {[%emt 0:00:32]} Rae8 {[%emt 0:04:12]} 29. Rag1 {[%emt 0:00:41]} Nh5 {[%emt 0:01:47]} 30. Rxg6 {[%emt 0:02:52]} Rxg6 {[%emt 0:00:00]} 31. Bxf5 {[%emt 0:00:06]} Ree6 {[%emt 0:00:37]} 32. Be5 1-0

[Event "11th LCC FIDE Open 2019"]
[Site "London"]
[Date "2019.11.30"]
[Round "2.16"]
[White "Gschnitzer, Adrian"]
[Black "Walker, Martin G"]
[Result "0-1"]
[ECO "C26"]
[WhiteElo "2422"]
[BlackElo "2162"]
[Annotator "NA"]
[PlyCount "90"]
[EventDate "2019.11.29"]
[EventType "swiss"]
[EventCountry "ENG"]
[SourceTitle "playchess.com"]
[Source "ChessBase"]
[SourceQuality "1"]
[TimeControl "40/5400+30:1800+30"]

1. e4 {[%emt 0:05:26]} e5 {[%emt 0:00:00]} 2. Nc3 {[%emt 0:00:11]} Nf6 {[%emt 0:00:00]} 3. g3 {[%emt 0:00:16]} Bc5 {[%emt 0:01:32]} 4. Bg2 {[%emt 0:00:27]} O-O {[%emt 0:01:11]} 5. Nge2 {[%emt 0:01:23]} d6 {[%emt 0:02:25]} 6. O-O {[%emt 0:01:03]} a6 {[%emt 0:01:56]} 7. h3 {[%emt 0:01:08]} Nc6 {[%emt 0:00:49]} 8. d3 {[%emt 0:00:48]} Nd4 {[%emt 0:05:24] C26: Vienna Game: 2...Nf6, sidelines} (8... Be6 9. Kh2 d5 10. Bg5 dxe4 11. Nxe4 Be7 12. Bxf6 Bxf6 13. f4 Be7 14. f5 Bd7 15. f6 gxf6 16. g4 f5 17. gxf5 {1-0 (32) Mamedov,R (2709)-Alekseev,E (2616) Riadh 2017}) 9. Kh2 {[%emt 0:02:51]} b5 {[%emt 0:09:34]} 10. Nxd4 {[%emt 0:08:14]} Bxd4 {[%emt 0:00:06]} 11. Ne2 {[%emt 0:01:01]} Bb6 $146 {[%emt 0:00:37]} ({Predecessor:} 11... Bb7 12. c3 Bb6 13. f4 c5 14. Qc2 {1-0 (40) Vos,J (2115)-De Groote,J (1893) Hengelo 2005}) 12. f4 {[%emt 0:01:17]} Bb7 {[%emt 0:00:53]} 13. fxe5 {[%emt 0:03:21]} dxe5 {[%emt 0:00:04]} 14. g4 {[%emt 0:02:27]} Nd7 {[%emt 0:09:46]} 15. Ng3 {[%emt 0:01:08]} f6 {[%emt 0:04:25]} 16. h4 {[%emt 0:03:01]} Nc5 {[%emt 0:02:57]} 17. Bh3 {[%emt 0:05:57]} Bc8 {[%emt 0:01:32]} 18. Qe2 {[%emt 0:10:29]} Ne6 {[%emt 0:00:36]} 19. Qg2 $15 {[%emt 0:02:21]} c5 {[%emt 0:05:42]} 20. g5 {[%emt 0:05:59]} Nf4 {[%emt 0:07:37]} 21. Bxf4 {[%emt 0:00:30]} exf4 {[%emt 0:00:05]} 22. Nh5 {[%emt 0:11:15]} fxg5 {[%emt 0:00:07]} 23. hxg5 {[%emt 0:01:52]} Bc7 {[%emt 0:02:25]} 24. Rf3 {[%emt 0:00:34]} Be5 {[%emt 0:19:02]} 25. Raf1 {[%emt 0:03:09]} Qd6 {[%emt 0:00:30]} 26. Bxc8 {[%emt 0:04:57]} Raxc8 {[%emt 0:00:05]} 27. Qg4 {[%emt 0:00:30]} Rc7 {[%emt 0:00:46]} 28. c3 {[%emt 0:08:58]} Rcf7 {[%emt 0:03:55]} 29. Re1 {[%emt 0:00:22]} g6 {[%emt 0:03:51]} 30. Nf6+ {[%emt 0:00:25]} Bxf6 {[%emt 0:00:06]} 31. gxf6 {[%emt 0:00:05]} Qxf6 {[%emt 0:00:08]} 32. e5 {[%emt 0:00:27]} Qe7 {[%emt 0:00:05]} 33. d4 {[%emt 0:01:35]} cxd4 {[%emt 0:00:17]} 34. cxd4 {[%emt 0:00:01]} Rf5 {[%emt 0:00:07]} 35. Rg1 {[%emt 0:01:13]} Qf7 {[%emt 0:06:12]} 36. b3 {[%emt 0:03:54]} Kh8 {[%emt 0:00:14]} 37. Re1 {[%emt 0:04:02]} Qd5 {[%emt 0:04:04]} 38. Rh3 {[%emt 0:01:46]} Qxd4 {[%emt 0:00:19]} 39. Rg1 {[%emt 0:00:24]} Qd7 {[%emt 0:07:01]} 40. Qxg6 {[%emt 0:02:37]} Rxe5 {[%emt 0:00:34]} 41. Qc2 {[%emt 0:31:56]} Qe7 {[%emt 0:05:49]} 42. Qb2 {[%emt 0:00:00]} Rf6 {[%emt 0:00:16]} 43. Qc3 {[%emt 0:00:00]} Re2+ {[%emt 0:07:39]} 44. Rg2 {[%emt 0:00:00]} Rxg2+ {[%emt 0:02:46]} 45. Kxg2 {[%emt 0:00:00]} f3+ {[%emt 0:00:30]} 0-1

[Event "11th LCC FIDE Open 2019"]
[Site "London"]
[Date "2019.11.30"]
[Round "2.17"]
[White "Marzano, Carlo"]
[Black "McDonald, Neil R"]
[Result "1/2-1/2"]
[ECO "D56"]
[WhiteElo "2128"]
[BlackElo "2412"]
[Annotator "NA"]
[PlyCount "68"]
[EventDate "2019.11.29"]
[EventType "swiss"]
[EventCountry "ENG"]
[SourceTitle "playchess.com"]
[Source "ChessBase"]
[SourceQuality "1"]
[TimeControl "40/5400+30:1800+30"]

1. d4 {[%emt 0:00:00]} d5 {[%emt 0:00:00]} 2. c4 {[%emt 0:00:00]} e6 {[%emt 0:00:00]} 3. Nc3 {[%emt 0:00:00]} Be7 {[%emt 0:00:00]} 4. Nf3 {[%emt 0:00:00]} Nf6 {[%emt 0:00:11]} 5. Bg5 {[%emt 0:00:14]} h6 {[%emt 0:01:53]} 6. Bh4 {[%emt 0:00:05]} O-O {[%emt 0:00:11]} 7. e3 {[%emt 0:00:11]} Ne4 {[%emt 0:00:47]} 8. Bxe7 {[%emt 0:00:07]} Qxe7 {[%emt 0:00:06]} 9. Rc1 {[%emt 0:00:27]} c6 {[%emt 0:03:11]} 10. Bd3 {[%emt 0:00:12]} Nxc3 {[%emt 0:01:18]} 11. Rxc3 {[%emt 0:00:04]} dxc4 {[%emt 0:01:49]} 12. Bxc4 {[%emt 0:00:04]} Nd7 {[%emt 0:00:57]} 13. O-O {[%emt 0:00:09]} e5 {[%emt 0:02:39]} 14. dxe5 {[%emt 0:00:13]} Nxe5 {[%emt 0:00:25]} 15. Nxe5 {[%emt 0:00:06]} Qxe5 {[%emt 0:00:21]} 16. f4 {[%emt 0:00:12]} Qe4 {[%emt 0:02:42]} 17. Qe2 {[%emt 0:04:52]} Bf5 {[%emt 0:05:49]} 18. Bd3 {[%emt 0:17:56]} Qe6 {[%emt 0:01:17]} 19. Bxf5 {[%emt 0:01:04]} Qxf5 {[%emt 0:00:08]} 20. Qc2 {[%emt 0:26:15]} Qxc2 $11 {[%emt 0:10:02]} 21. Rxc2 {[%emt 0:00:17]} Rfe8 {[%emt 0:01:33]} 22. Kf2 {[%emt 0:01:50]} Rad8 {[%emt 0:02:10]} 23. Ke2 {[%emt 0:02:04]} Rd4 {[%emt 0:01:21]} 24. g3 {[%emt 0:05:43]} Rde4 {[%emt 0:05:02]} 25. Rc3 {[%emt 0:00:36]} Rb4 {[%emt 0:09:46]} 26. b3 {[%emt 0:12:35]} Rbe4 {[%emt 0:05:37]} 27. Rd1 {[%emt 0:02:24]} R8e7 {[%emt 0:00:32]} 28. Rd8+ {[%emt 0:01:18]} Kh7 {[%emt 0:00:13]} 29. Ra8 {[%emt 0:08:36]} b6 {[%emt 0:00:32]} 30. Rc8 {[%emt 0:05:52]} c5 {[%emt 0:01:03]} 31. Rd3 {[%emt 0:02:05]} g5 {[%emt 0:08:56]} 32. Kf3 {[%emt 0:04:15]} f5 {[%emt 0:05:16]} 33. Rf8 {[%emt 0:00:15]} Kg6 {[%emt 0:01:39]} 34. Rg8+ {[%emt 0:02:11]} Kh7 {[%emt 0:02:11]} 1/2-1/2

[Event "11th LCC FIDE Open 2019"]
[Site "London"]
[Date "2019.11.30"]
[Round "2.18"]
[White "Percivaldi, Martin"]
[Black "Stanisz, Patryk"]
[Result "1-0"]
[ECO "D02"]
[WhiteElo "2384"]
[BlackElo "2139"]
[Annotator "NA"]
[PlyCount "63"]
[EventDate "2019.11.29"]
[EventType "swiss"]
[EventCountry "ENG"]
[SourceTitle "playchess.com"]
[Source "ChessBase"]
[SourceQuality "1"]
[TimeControl "40/5400+30:1800+30"]

1. Nf3 {[%emt 0:00:00]} d5 {[%emt 0:00:00]} 2. g3 {[%emt 0:00:00]} c6 {[%emt 0:00:10]} 3. Bg2 {[%emt 0:00:09]} Nf6 {[%emt 0:00:53]} 4. O-O {[%emt 0:00:16]} Nbd7 {[%emt 0:01:05]} 5. d4 {[%emt 0:00:36]} e6 {[%emt 0:00:44]} 6. Nbd2 {[%emt 0:00:15]} Be7 {[%emt 0:03:47]} 7. c4 {[%emt 0:00:18]} b6 {[%emt 0:00:40]} 8. Qc2 {[%emt 0:00:20]} Bb7 {[%emt 0:00:15]} 9. e4 {[%emt 0:01:49]} dxe4 {[%emt 0:02:52]} 10. Nxe4 {[%emt 0:01:35]} Nxe4 {[%emt 0:14:37]} 11. Qxe4 {[%emt 0:00:03]} Nf6 {[%emt 0:00:15]} 12. Qc2 {[%emt 0:07:22]} c5 {[%emt 0:03:13]} 13. d5 {[%emt 0:08:04]} exd5 {[%emt 0:14:09]} 14. Nh4 $11 {[%emt 0:01:09]} Qd7 {[%emt 0:10:09]} 15. Nf5 {[%emt 0:02:52]} O-O-O {[%emt 0:04:26]} 16. Bf4 {[%emt 0:10:32]} h5 {[%emt 0:20:44]} 17. f3 {[%emt 0:11:14]} Rde8 {[%emt 0:03:57]} 18. Nxg7 {[%emt 0:08:10]} Reg8 {[%emt 0:07:02]} 19. Nf5 {[%emt 0:00:32]} h4 {[%emt 0:01:27]} 20. Nxe7+ {[%emt 0:10:15]} Qxe7 {[%emt 0:00:06]} 21. Bh3+ {[%emt 0:00:08]} Nd7 {[%emt 0:04:31]} 22. Rae1 {[%emt 0:03:47]} Qd8 {[%emt 0:00:02]} 23. Qf5 {[%emt 0:08:08]} hxg3 {[%emt 0:00:15]} 24. hxg3 {[%emt 0:01:07]} d4 {[%emt 0:01:14]} 25. Kg2 {[%emt 0:01:28]} Bc6 {[%emt 0:01:58]} 26. a3 {[%emt 0:00:50]} Qh4 {[%emt 0:02:51]} 27. Re8+ {[%emt 0:01:25]} Rxe8 {[%emt 0:01:26]} 28. gxh4 {[%emt 0:00:14]} Rxh4 {[%emt 0:00:23]} 29. Bg3 {[%emt 0:01:12]} Rh6 {[%emt 0:00:44]} 30. Qf4 {[%emt 0:00:14]} Re2+ {[%emt 0:00:31]} 31. Rf2 {[%emt 0:00:18]} Rxf2+ {[%emt 0:00:31]} 32. Kxf2 {[%emt 0:00:12]} 1-0

[Event "11th LCC FIDE Open 2019"]
[Site "London"]
[Date "2019.11.30"]
[Round "2.20"]
[White "Modi, Shyam Jagdish"]
[Black "Beinoras, Mindaugas"]
[Result "0-1"]
[ECO "D11"]
[WhiteElo "2124"]
[BlackElo "2350"]
[Annotator "ChessBase"]
[PlyCount "34"]
[EventDate "2019.11.29"]
[EventType "swiss"]
[EventCountry "ENG"]
[SourceTitle "playchess.com"]
[Source "ChessBase"]
[SourceQuality "1"]
[TimeControl "40/5400+30:1800+30"]

1. d4 {[%emt 0:01:54]} d5 {[%emt 0:00:00]} 2. c4 {[%emt 0:00:26]} dxc4 {[%emt 0:00:00]} 3. e3 {[%emt 0:00:26]} Be6 {[%emt 0:00:08]} 4. Nc3 {[%emt 0:04:05]} c6 {[%emt 0:00:57]} 5. Nf3 {[%emt 0:14:26]} b5 {[%emt 0:00:18]} 6. Ng5 {[%emt 0:01:09]} Bc8 {[%emt 0:03:30]} 7. e4 {[%emt 0:21:54]} h6 {[%emt 0:05:12]} 8. Nf3 {[%emt 0:01:14]} Nf6 {[%emt 0:00:15]} 9. a4 {[%emt 0:08:29]} b4 {[%emt 0:02:58]} 10. e5 {[%emt 0:00:01]} bxc3 {[%emt 0:06:10]} 11. exf6 {[%emt 0:00:02]} cxb2 {[%emt 0:03:32]} 12. fxg7 {[%emt 0:08:15]} bxa1=Q {[%emt 0:06:10]} 13. gxh8=Q {[%emt 0:00:10]} Qa5+ {[%emt 0:00:08]} 14. Nd2 {[%emt 0:06:01]} Q5c3 {[%emt 0:01:38]} 15. Bxc4 {[%emt 0:04:54]} Qaxc1 {[%emt 0:01:38]} 16. Qxc1 {[%emt 0:00:46]} Qxc1+ {[%emt 0:00:27]} 17. Ke2 {[%emt 0:00:03]} Bg4+ {[%emt 0:01:44]} 0-1